Cogmind - Beta 10.2 @@@ ROGUE MODE // 2021.09.15 @ 20:53:53 Player: Storyteller Result: Destroyed by S-10 Pest with Light Assault Rifle Performance ------------- Evolutions (1) 500 Regions Visited (2) 400 Robots Destroyed (15) 75 Value Destroyed (426) 426 Prototype IDs (3) 60 Alien Tech Used (0) 0 Bonus (0) 0 TOTAL SCORE: 1461 Bonus ------- None Cogmind --------- Core Integrity 0/400 Matter 280/300 Energy 75/100 System Corruption 0% Temperature Cool (2) Movement Flying (34) Location -9/Materials Parts ------- > --- POWER (1) -------- (None) > --- PROPULSION (4) --- VTOL Module Improved Flight Unit > --- UTILITY (2) ------ Small Storage Unit Propulsion Shielding > --- WEAPON (2) ------- (None) > --- INVENTORY (6) ---- Medium Storage Unit Peak State ------------ > --- POWER ------------ Ion Engine > --- PROPULSION ------- Flight Unit Flight Unit Flight Unit Flight Unit > --- UTILITY ---------- Small Storage Unit Propulsion Shielding > --- WEAPON ----------- EM Pulse Gun Light EM Pulse Cannon > --- INVENTORY -------- Improved Ion Engine Flight Unit Medium Storage Unit Light EM Pulse Cannon Light EM Pulse Cannon Light EM Pulse Cannon [Rating: 11] Favorites ----------- Power Ion Engine Engine Ion Engine Propulsion Flight Unit Wheel Wheel Flight Unit Flight Unit Utility Small Storage Unit Storage Small Storage Unit Protection Propulsion Shielding Weapon Assault Rifle Energy Gun EM Pulse Gun Energy Cannon Light EM Pulse Cannon Ballistic Gun Assault Rifle Special Melee Weapon Datajack Build | -11 -10 -9 ------- Run | Scr Mat Mat Slots Evolved 2 | . . 2 Power . | . . . Propulsion 2 | . . 2 Utility . | . . . Weapon . | . . . Parts Attached 25 | 6 2 17 Power 6 | 1 1 4 Engine 6 | 1 1 4 Core . | . . . Reactor . | . . . Propulsion 9 | 2 . 7 Treads . | . . . Leg . | . . . Wheel 2 | 2 . . Hover . | . . . Flight 7 | . . 7 Utility 2 | 1 . 1 Device . | . . . Storage 1 | 1 . . Processor . | . . . Hackware . | . . . Protection 1 | . . 1 Artifact . | . . . Weapon 8 | 2 1 5 Energy Gun 1 | . 1 . Energy Cannon 4 | . . 4 Ballistic Gun 2 | 2 . . Ballistic Cannon . | . . . Launcher . | . . . Special Weapon . | . . . Impact Weapon . | . . . Slashing Weapon . | . . . Piercing Weapon . | . . . Special Melee Weapon 1 | . . 1 Unidentified Prototypes 1 | . . 1 Parts Lost 15 | . 2 13 Power 3 | . 1 2 Propulsion 5 | . . 5 Utility . | . . . Weapon 7 | . 1 6 Highest Loss Streak 11 | . 2 11 Average Slot Usage (%) 85 | . 83 86 Engine 11 | . 13 9 Wheel 11 | . 28 . Flight 22 | . . 38 Storage 12 | . 14 11 Protection 4 | . . 7 Energy Gun 5 | . 6 4 Energy Cannon 4 | . . 8 Ballistic Gun 9 | . 20 2 Special Melee Weapon 2 | . . 4 Naked Turns . | . . . Heaviest Build 17 | 10 13 17 Greatest Support 26 | 26 26 16 Greatest Overweight (x) 2 | . . 2 Average Overweight (x) . | . . . Largest Inventory Capacity 6 | 6 6 6 Average Capacity 5 | 5 6 6 Most Carried 6 | 6 6 6 Average Carried 5 | 2 5 4 Final Capacity 6 | 6 6 6 Final Carried 6 | 6 6 1 Class Distribution -------------------- 55% | Mutant 44% | Scavenger-Sprinter Dominant Class ---------------- Mutant | -10/Materials Scavenger-Sprinter | -9/Materials Resources | -11 -10 -9 ----------- Run | Scr Mat Mat Matter Collected 504 | 137 252 115 Remotely . | . . . Salvage Created 539 | . 183 356 Parts 30 | . 11 19 Haulers Intercepted . | . . . Recyclers Shooed . | . . . Parts Field Recycled . | . . . Retrieved Matter . | . . . Parts Self-Destructed . | . . . Prevented . | . . . Kills | -11 -10 -9 ------- Run | Scr Mat Mat Combat Hostiles Destroyed 14 | . 8 6 Guns 9 | . 8 1 Cannons 5 | . . 5 Classes Destroyed 4 | . 2 2 Watcher 1 | . . 1 Swarmer 5 | . 5 . Grunt 5 | . 3 2 Sentry 4 | . . 4 Best Kill Streak 4 | . 4 2 Combat Bots Only 4 | . 4 2 Max Kills in Single Turn 1 | . 1 1 Gunslinging . | . . . Exploded . | . . . Melee . | . . . Uniques/NPCs Destroyed . | . . . Combat | -11 -10 -9 -------- Run | Scr Mat Mat Damage Taken 1606 | . 456 1150 Core 547 | . 140 407 Absorbed by Shields . | . . . Core Remaining (%) 72 | 100 44 . Volleys Fired 62 | . 35 27 Largest 2 | . 2 2 Hottest 96 | . 60 96 Shots Fired 97 | . 61 36 Gun 75 | . 61 14 Cannon 22 | . . 22 Launcher . | . . . Special . | . . . Kinetic 57 | . 52 5 Thermal . | . . . Explosive . | . . . Electromagnetic 40 | . 9 31 Robot Hit Streak 11 | . 7 11 Robot Miss Streak 4 | . 4 4 Penetration Max . | . . . Secondary Targets 1 | . 1 . Max Gunslinging Chain 1 | . 1 . Shots Hit Robots 56 | . 32 24 Core Hits 21 | . 11 10 Critical Hits 2 | . 2 . Critical Kills 1 | . 1 . Critical Parts Destroyed 1 | . 1 . Melee Attacks 2 | . . 2 Impact . | . . . Slashing . | . . . Piercing . | . . . Sneak Attacks . | . . . Combat Hostiles . | . . . Follow-up Attacks . | . . . Damage Inflicted 693 | . 328 365 Guns 394 | . 309 85 Cannons 280 | . . 280 Explosions . | . . . Melee . | . . . Ramming 19 | . 19 . Kinetic 336 | . 299 37 Thermal . | . . . Explosive . | . . . Electromagnetic 338 | . 10 328 Impact . | . . . Slashing . | . . . Piercing . | . . . Highest Corruption 1 | . 1 . Average Corruption 1 | . 1 . Corruption Purged . | . . . Overload Shots . | . . . Overflow Damage . | . . . Projectiles . | . . . Explosions . | . . . Melee . | . . . Knockbacks . | . . . Impact . | . . . Kinetic . | . . . Secondary . | . . . Self-Inflicted Damage 9 | . 9 . Shots . | . . . Rammed 3 | . 3 . Targets Rammed 3 | . 3 . Kicked . | . . . Crushed . | . . . Highest Temperature 206 | . 12 206 Average Temperature 39 | . 6 43 Received Heat Transfer 147 | . 66 81 Siege Activations . | . . . Robots Corrupted . | . . . Combat Hostiles . | . . . Parts Fried . | . . . Impact Corruptions . | . . . Robots Melted . | . . . Combat Hostiles . | . . . Parts Melted . | . . . Heat Transferred . | . . . Parts Sabotaged . | . . . Parts Stolen . | . . . Parts Stripped . | . . . Power Chain Reactions . | . . . Missiles Intercepted . | . . . Alert | -11 -10 -9 ------- Run | Scr Mat Mat Peak Influence 275 | . 210 275 Initial 88 | . . 88 Average 127 | . 112 152 Maximum Alert Level 1 | . 1 1 Low Security (%) 77 | 100 81 71 Level 1 22 | . 18 28 Level 2 . | . . . Level 3 . | . . . Level 4 . | . . . Level 5 . | . . . High Security . | . . . Max Security . | . . . Squads Dispatched 6 | . 3 3 Investigation 3 | . 2 1 Extermination . | . . . Reinforcement 3 | . 1 2 Assault . | . . . Garrison . | . . . Intercept . | . . . Construction Impeded . | . . . Haulers Reinforced . | . . . Stealth | -11 -10 -9 --------- Run | Scr Mat Mat Distress Signals 2 | . 1 1 Communications Jammed . | . . . Distress Signals . | . . . Times Spotted 33 | . 10 23 Peak Tracking Total 8 | . 6 8 Tactical Retreats 2 | . . 2 Traps | -11 -10 -9 ------- Run | Scr Mat Mat Traps Triggered 2 | . 1 1 Indirectly . | . . . Trap Hack Attempts . | . . . Triggered . | . . . Disarmed . | . . . Reprogrammed . | . . . Reused . | . . . Traps Extracted . | . . . Installed . | . . . Triggered . | . . . Machines | -11 -10 -9 ---------- Run | Scr Mat Mat Machines Disabled 1 | . 1 . Max in Single Turn 1 | . 1 . Machines Sabotaged . | . . . Garrisons Compromised . | . . . Overloaded Fab Kills . | . . . Fab Network Shutdowns . | . . . Hacking | -11 -10 -9 --------- Run | Scr Mat Mat Machines Accessed 3 | . 1 2 Terminals 2 | . 1 1 Fabricators . | . . . Repair Stations . | . . . Recycling Units 1 | . . 1 Scanalyzers . | . . . Garrison Access . | . . . Total Hacks 6 | . 3 3 Successful 4 | . 1 3 Failed 2 | . 2 . Catastrophic . | . . . Database Lockouts . | . . . Manual . | . . . Terminals 5 | . 3 2 Fabricators . | . . . Repair Stations . | . . . Recycling Units 1 | . . 1 Scanalyzers . | . . . Garrison Access . | . . . Terminal Hacks 3 | . 1 2 Prototype ID Bank 1 | . 1 . Alert Level 1 | . . 1 Zone Layout 1 | . . 1 Fabricator Hacks . | . . . Repair Station Hacks . | . . . Recycling Unit Hacks 1 | . . 1 Report Inventory 1 | . . 1 Scanalyzer . | . . . Garrison Access Hacks . | . . . Unauthorized Hacks . | . . . Terminals . | . . . Fabricators . | . . . Repair Stations . | . . . Recycling Units . | . . . Scanalyzers . | . . . Garrison Access . | . . . Data Cores Recovered . | . . . Used . | . . . Hacking Detections 3 | . 1 2 Full Trace Events 1 | . 1 . Feedback Events . | . . . Feedback Blocked . | . . . Robot Schematics Acquired . | . . . Robots Built . | . . . Matter . | . . . Time . | . . . Total Robot Build Rating . | . . . Part Schematics Acquired . | . . . Parts Built . | . . . Matter . | . . . Time . | . . . Total Part Build Rating . | . . . Parts Repaired . | . . . Time . | . . . Parts Recycled . | . . . Recycled Matter . | . . . Retrieved Matter . | . . . Retrieved Components . | . . . Parts Scanalyzed . | . . . Part Schematics Acquired . | . . . Parts Damaged . | . . . Bothacking | -11 -10 -9 ------------ Run | Scr Mat Mat Used RIF Installer . | . . . Robots Hacked 1 | . . 1 Non-combat . | . . . Combat 1 | . . 1 Robot Hacks Applied 1 | . . 1 parse_system 1 | . . 1 Relay Couplers Released . | . . . Robots Rewired . | . . . Allies Hacked . | . . . Hacks Repelled . | . . . Allies | -11 -10 -9 -------- Run | Scr Mat Mat Total Allies . | . . . Largest Group . | . . . Highest-Rated Group . | . . . Highest-Rated Ally . | . . . Total Orders . | . . . Ally Attacks . | . . . Total Damage . | . . . Kills . | . . . Allies Corrupted . | . . . Allies Melted . | . . . Intel | -11 -10 -9 ------- Run | Scr Mat Mat Robot Analysis Total . | . . . Derelict Logs Recovered . | . . . Drone Launches . | . . . Drone Recoveries . | . . . Exploration | -11 -10 -9 ------------- Run | Scr Mat Mat Turns Passed 924 | 58 364 502 Spaces Moved 809 | 51 238 520 Core 11 | 5 . 6 Treads . | . . . Legs . | . . . Wheels 284 | 46 238 . Hover . | . . . Flight 514 | . . 514 Fastest Speed 31 | 50 90 31 Average Speed 53 | 85 90 33 Slowest Speed 150 | 90 90 150 Overloaded Moves . | . . . Propulsion Burnouts . | . . . Robots Hopped 4 | . . 4 Cave-ins Triggered . | . . . Exploration Rate (%) 26 | 4 28 46 Regions Visited 2 Branch Regions . Pre-discovered Areas . | . . . Known Exits Taken . | . . . Unknown Exits Taken 2 | 1 1 . Scrap Searched . | . . . Spaces Dug . | . . . Terrain Destroyed . | . . . Melee . | . . . Projectile . | . . . AOE . | . . . Terrain Rammed . | . . . Walls Destroyed . | . . . Machines Disabled . | . . . Actions | -11 -10 -9 --------- Run | Scr Mat Mat Total 1197 | 62 332 803 Wait 276 | . 45 231 Move 799 | 50 237 512 Hop 4 | . . 4 Pick Up 18 | 6 6 6 Fast Attach 10 | 6 . 4 Attach 12 | . 2 10 Detach . | . . . Swap 3 | . . 3 Drop 8 | . 4 4 Fire 62 | . 35 27 Melee 2 | . . 2 Ram 3 | . 3 . Kick . | . . . Crush . | . . . Escape Stasis . | . . . Rewire . | . . . Trap . | . . . Miscellaneous . | . . . Route ------- -11/Scrapyard -10/Materials -9/Materials History --------- Turn | Location | Event 8 | -11/Scrapyard | Discovered new exit (range 15) 59 | -11/Scrapyard | Entered Materials 265 | -10/Materials | Core integrity fell below 50% 318 | -10/Materials | Build established: Mutant 369 | -10/Materials | Discovered new exit (range 6) 423 | -10/Materials | Entered another Materials area 423 | -9/Materials | Evolved 2 slots: Propulsion x2 875 | -9/Materials | Core integrity fell below 50% 894 | -9/Materials | Core integrity fell below 20% 922 | -9/Materials | Lost 11 parts (2p4n5w) 925 | -9/Materials | Destroyed by S-10 Pest with Light Assault Rifle Last Messages --------------- 00877_ Destroyed Flight Unit. 00880_ S-10 Pest misfires. 00885_ R-06 Scavenger collects Lgt. Armor Plating. 00885_ Imp. Ion Engine destroyed. 00889_ R-06 Scavenger collects Hvy. Assault Rifle. 00890_ K-01 Serf destroyed. 00891_ Lgt. EM Pulse Cannon destroyed. 00893_ O-16 Technician: "IFF HANDSHAKE FAILED. SECURING TERMINAL." 00894_ Acquired VTOL Module. 00894_ R-06 Scavenger collects Sml. Matter Pod. 00895_ K-01 Serf collects debris. 00896_ O-16 Technician uses terminal to summon reinforcements. 00896_ ALERT: Hostiles spotted, dispatching reinforcements to Terminal M003. 00896_ O-16 Technician locks terminal. 00910_ O-16 Technician: "IFF HANDSHAKE FAILED. SECURING TERMINAL." 00917_ ALERT: Hostiles spotted, dispatching reinforcements to Terminal M009. 00920_ Acquired Prototype Flight Unit. 00920_ Identified Imp. Flight Unit. Map ----- +----------------------------------------------------+ | ?????????????????# ######## | | ?????????????????# #????# | | ?????????????????# #????# | | ?????????????????# #????# """"" | | ?????????????????# #????# """"" | | ?????????????????# #????# """"" | | ?????????????????#+####### | | ?????????????????# # | | ?????????????????# """"" + | | ?????????????????# """"" # | | ?????????????????# """"" # ]][ | | ?????????????????# # ]][ | | ?????????????????######### ][ | | ??????????###########????# | | ??????????# """T""" #????# | | ??????????# #??######### # | | ??????????# #??# # # | | ????#?????# """ """ #??# + + | | ????# ????# """ """ #??# # # | | ????# ????# """ """ #??######### # | | #####s##### #??######### # | | # #s #??#[ # # | | # #/##+#######?# "T" + # | | #] # s #?# # # | | # s/ #?####/#### # | | # #@ " #????# #?# | | # ## T #????# #?# | | # ## " #????# #?# | | # ## #????# #?# | | ############ ###### #?# | | ??????????# #?###### | | ??????????# #??????? | | ??????????# ######## | | ??????????### #T######### % | | ????????????# ###???????# | | ????????????# #?????????# | | ????????????# #?????????# ######## | | ????????????#?#?????? #??????? | | ?????????????????? #??????? | | ?????????????????? #??????? | | ????????????????? ########??????? | | ????????????????? ???????????????? | | ???????????????????????????????????? | | ???????????????????????????????????? | | ???????????????????????????????????? | | ???????????????????????????????????? | | ???????????????????????????????????? | | ???????????????????????????????????? | | ???????????????????????????????????? | | ???????????????????????????????????? | +----------------------------------------------------+ Best States ------------- Heat Dissipation 28 Energy Generation 12 Energy Capacity 265 Matter Stores 300 Matter Capacity 300 Sight Range 16 Terrain Scan Density 10 Propulsion Shielding 33 Evasion (%) 63 Item Schematics ----------------- None Robot Schematics ------------------ None Fabricated ------------ Nothing Alien Tech Used ----------------- None Achievements -------------- None Challenges ------------ None Game ------ Seed CannonWarpLeg Manual? 0 Play Time 00:12:49 Cumulative 24.2 hours Start 2021.09.15 @ 20:43:10 End 2021.09.15 @ 20:53:53 Sessions 1 Manual Loads 0 Difficulty Rogue Special Mode None Game No. 48 Rogue 48 Adventurer 0 Explorer 0 Win Type - Total 0 Types 0/0/0/0/0/0/0/0/0 Lore% 23 Gallery% 20 Achievement% 15 Wizard Run 0 Options --------- ASCII 1 Keyboard 1 Movement Vi Keybinds 0 Fullscreen 1 Font 18/Terminus Map View 76x50 Tactical HUD 1 Map Filters NONE Filters NONE Steam 1 RUN: d108b208-297a-4e56-a002-148c0f3a93fb